[Event "*** Titled Tuesday Blitz"]
[Site "Chess.com"]
[Date "2021.02.09"]
[Round "7"]
[White "TimofeevAr"]
[Black "esapunov"]
[Result "1-0"]
[WhiteElo "2873"]
[BlackElo "2729"]
[TimeControl "180+1"]
[EndTime "11:19:28 PST"]
[Termination "TimofeevAr won by resignation"]

1. c4 {[%clk 0:03:00.9]} 1... Nf6 {[%clk 0:02:59.7]} 2. Nc3 {[%clk 0:03:00.3]}
2... g6 {[%clk 0:03:00.1]} 3. g3 {[%clk 0:03:00.1]} 3... Bg7 {[%clk 0:02:59.7]}
4. Bg2 {[%clk 0:03:00.4]} 4... O-O {[%clk 0:03:00.2]} 5. d3 {[%clk 0:03:00]}
5... d6 {[%clk 0:03:00]} 6. Nf3 {[%clk 0:02:59.6]} 6... Nc6 {[%clk 0:03:00.3]}
7. O-O {[%clk 0:02:59.7]} 7... Nh5 {[%clk 0:03:00.5]} 8. Bd2 {[%clk 0:02:57.6]}
8... a5 {[%clk 0:03:00.2]} 9. Rb1 {[%clk 0:02:51.9]} 9... f5 {[%clk 0:03:00.3]}
10. a3 {[%clk 0:02:51.9]} 10... f4 {[%clk 0:03:00.6]} 11. b4 {[%clk 0:02:51]}
11... axb4 {[%clk 0:03:00.9]} 12. axb4 {[%clk 0:02:51.4]} 12... Bg4 {[%clk
0:03:01.5]} 13. b5 {[%clk 0:02:51.2]} 13... Nd4 {[%clk 0:03:01.2]} 14. Nd5
{[%clk 0:02:24.3]} 14... Bxf3 {[%clk 0:02:46]} 15. Bxf3 {[%clk 0:02:20.1]} 15...
Nxf3+ {[%clk 0:02:41.4]} 16. exf3 {[%clk 0:02:20.1]} 16... fxg3 {[%clk
0:02:40.7]} 17. hxg3 {[%clk 0:02:19.1]} 17... e6 {[%clk 0:02:36.9]} 18. Ne3
{[%clk 0:02:14.3]} 18... Ra2 {[%clk 0:02:27.5]} 19. Re1 {[%clk 0:02:06]} 19...
Qg5 {[%clk 0:02:11.7]} 20. Nf1 {[%clk 0:01:51.5]} 20... Qf6 {[%clk 0:01:58.7]}
21. Kg2 {[%clk 0:01:46.7]} 21... Kh8 {[%clk 0:01:42.2]} 22. Qe2 {[%clk
0:01:45.8]} 22... e5 {[%clk 0:01:40]} 23. Qe4 {[%clk 0:01:43.2]} 23... b6 {[%clk
0:01:36.7]} 24. Ra1 {[%clk 0:01:39.8]} 24... Rxa1 {[%clk 0:01:32.3]} 25. Rxa1
{[%clk 0:01:39.1]} 25... Qf7 {[%clk 0:01:31.6]} 26. Ra7 {[%clk 0:01:31.6]} 26...
Qd7 {[%clk 0:01:14.4]} 27. Qg4 {[%clk 0:01:26.4]} 27... Qf7 {[%clk 0:01:11.9]}
28. Nh2 {[%clk 0:01:16.5]} 28... Nf6 {[%clk 0:01:10.1]} 29. Qh4 {[%clk 0:01:16]}
29... h5 {[%clk 0:00:58.1]} 30. Be3 {[%clk 0:01:09.3]} 30... Kg8 {[%clk
0:00:57.2]} 31. Bxb6 {[%clk 0:01:07.2]} 31... Rc8 {[%clk 0:00:52.5]} 32. Be3
{[%clk 0:01:06.1]} 32... Qe6 {[%clk 0:00:51.5]} 33. Qh3 {[%clk 0:01:01.7]} 33...
Qf5 {[%clk 0:00:48.2]} 34. Qxf5 {[%clk 0:01:00.4]} 34... gxf5 {[%clk 0:00:48.6]}
35. Nf1 {[%clk 0:00:55.7]} 35... d5 {[%clk 0:00:46.3]} 36. Nd2 {[%clk
0:00:53.7]} 36... d4 {[%clk 0:00:40.9]} 37. Bg5 {[%clk 0:00:53.5]} 37... Nd7
{[%clk 0:00:41.5]} 38. Nb3 {[%clk 0:00:50.5]} 38... Kf7 {[%clk 0:00:41.1]} 39.
c5 {[%clk 0:00:49.8]} 39... Kg6 {[%clk 0:00:41]} 40. Bh4 {[%clk 0:00:48.7]}
40... Bf8 {[%clk 0:00:40.9]} 41. b6 {[%clk 0:00:46.4]} 41... Nxc5 {[%clk
0:00:38.5]} 42. Nxc5 {[%clk 0:00:44.7]} 42... cxb6 {[%clk 0:00:35.9]} 43. Ne6
{[%clk 0:00:39.4]} 43... Bh6 {[%clk 0:00:31.7]} 44. Rc7 {[%clk 0:00:36.5]} 44...
Rxc7 {[%clk 0:00:31]} 45. Nxc7 {[%clk 0:00:36.7]} 45... Kf7 {[%clk 0:00:31.2]}
46. Bd8 {[%clk 0:00:34.1]} 46... Bf8 {[%clk 0:00:29.6]} 47. f4 {[%clk
0:00:28.4]} 47... e4 {[%clk 0:00:27.8]} 48. Kf1 {[%clk 0:00:27.6]} 48... exd3
{[%clk 0:00:25.5]} 49. Ke1 {[%clk 0:00:27.6]} 49... Bb4+ {[%clk 0:00:25.5]} 50.
Kd1 {[%clk 0:00:27.8]} 50... Ba5 {[%clk 0:00:20.2]} 51. Nd5 {[%clk 0:00:25.8]}
51... Ke6 {[%clk 0:00:20.7]} 52. Bxb6 {[%clk 0:00:22.5]} 52... Bc3 {[%clk
0:00:20.5]} 53. Nc7+ {[%clk 0:00:16]} 53... Kd6 {[%clk 0:00:19.2]} 54. Ne8+
{[%clk 0:00:16]} 54... Kd5 {[%clk 0:00:18.7]} 55. Nf6+ {[%clk 0:00:16.1]} 55...
Kc4 {[%clk 0:00:17.1]} 56. Nxh5 {[%clk 0:00:15.9]} 56... d2 {[%clk 0:00:17.7]}
57. Ng7 {[%clk 0:00:15.7]} 57... Kd3 {[%clk 0:00:17.5]} 58. Nxf5 {[%clk
0:00:15.9]} 58... Ke4 {[%clk 0:00:18.2]} 59. Nh4 {[%clk 0:00:16.1]} 59... d3
{[%clk 0:00:17.6]} 60. Be3 {[%clk 0:00:15.3]} 60... Bb4 {[%clk 0:00:16.8]} 61.
Bxd2 {[%clk 0:00:15.5]} 61... Bc5 {[%clk 0:00:17.5]} 62. f3+ {[%clk 0:00:15.9]}
62... Kd5 {[%clk 0:00:17]} 63. g4 {[%clk 0:00:16]} 63... Bf2 {[%clk 0:00:17]}
64. Nf5 {[%clk 0:00:16.2]} 64... Ke6 {[%clk 0:00:16.4]} 65. Be3 {[%clk
0:00:16.4]} 65... Bxe3 {[%clk 0:00:14.9]} 1-0

[Event "*** Titled Tuesday Blitz"]
[Site "Chess.com"]
[Date "2021.02.09"]
[Round "7"]
[White "theultimatehunter"]
[Black "SharapovEvgeny"]
[Result "1/2-1/2"]
[WhiteElo "2252"]
[BlackElo "2456"]
[TimeControl "180+1"]
[EndTime "11:19:30 PST"]
[Termination "Game drawn by repetition"]

1. d4 {[%clk 0:02:58.4]} 1... d5 {[%clk 0:02:59.4]} 2. c4 {[%clk 0:02:58.6]}
2... c6 {[%clk 0:02:59]} 3. Nf3 {[%clk 0:02:59]} 3... Nf6 {[%clk 0:02:58.6]} 4.
e3 {[%clk 0:02:59.2]} 4... g6 {[%clk 0:02:58.3]} 5. Nc3 {[%clk 0:02:57.4]} 5...
Bg7 {[%clk 0:02:58]} 6. Be2 {[%clk 0:02:55.7]} 6... O-O {[%clk 0:02:57.4]} 7.
O-O {[%clk 0:02:56.1]} 7... Bg4 {[%clk 0:02:56.9]} 8. h3 {[%clk 0:02:53.4]} 8...
Bxf3 {[%clk 0:02:56.4]} 9. Bxf3 {[%clk 0:02:54.3]} 9... e6 {[%clk 0:02:56.6]}
10. Re1 {[%clk 0:02:51.6]} 10... Nbd7 {[%clk 0:02:56.1]} 11. Bd2 {[%clk
0:02:46.7]} 11... a6 {[%clk 0:02:55.5]} 12. c5 {[%clk 0:02:41.1]} 12... e5
{[%clk 0:02:55.4]} 13. b4 {[%clk 0:02:41.5]} 13... exd4 {[%clk 0:02:53.5]} 14.
exd4 {[%clk 0:02:41.8]} 14... Re8 {[%clk 0:02:52]} 15. Be3 {[%clk 0:02:40.2]}
15... Nf8 {[%clk 0:02:51.5]} 16. a4 {[%clk 0:02:37.8]} 16... Ne6 {[%clk
0:02:39.3]} 17. Rb1 {[%clk 0:02:31.9]} 17... Ne4 {[%clk 0:02:28.9]} 18. Bxe4
{[%clk 0:01:53.5]} 18... dxe4 {[%clk 0:02:26.9]} 19. Nxe4 {[%clk 0:01:54.4]}
19... Qd5 {[%clk 0:02:12.7]} 20. Nd6 {[%clk 0:01:13]} 20... Re7 {[%clk 0:02:12]}
21. b5 {[%clk 0:00:48.3]} 21... axb5 {[%clk 0:02:11.2]} 22. axb5 {[%clk
0:00:49.2]} 22... Nxd4 {[%clk 0:02:00.1]} 23. Bxd4 {[%clk 0:00:47.8]} 23...
Rxe1+ {[%clk 0:01:59.4]} 24. Qxe1 {[%clk 0:00:48.4]} 24... Bxd4 {[%clk
0:01:56.4]} 25. Nxb7 {[%clk 0:00:45.3]} 25... Ra2 {[%clk 0:01:47.2]} 26. Qe8+
{[%clk 0:00:34]} 26... Kg7 {[%clk 0:01:46.7]} 27. Rf1 {[%clk 0:00:34.7]} 27...
cxb5 {[%clk 0:01:11.6]} 28. c6 {[%clk 0:00:34]} 28... Rc2 {[%clk 0:01:06.5]} 29.
Nd8 {[%clk 0:00:23.8]} 29... b4 {[%clk 0:00:59.3]} 30. Qd7 {[%clk 0:00:20.3]}
30... Qxd7 {[%clk 0:00:44.4]} 31. cxd7 {[%clk 0:00:21.2]} 31... Bf6 {[%clk
0:00:41.7]} 32. Nb7 {[%clk 0:00:21.5]} 32... Rd2 {[%clk 0:00:41.2]} 33. Rb1
{[%clk 0:00:20.4]} 33... Rxd7 {[%clk 0:00:40.1]} 34. Rxb4 {[%clk 0:00:20.6]}
34... Rd2 {[%clk 0:00:34.8]} 35. Rb1 {[%clk 0:00:13.4]} 35... Bd4 {[%clk
0:00:33]} 36. Rf1 {[%clk 0:00:13.8]} 36... Bb6 {[%clk 0:00:27.4]} 37. Rb1 {[%clk
0:00:05.4]} 37... Bxf2+ {[%clk 0:00:24.8]} 38. Kh1 {[%clk 0:00:06.3]} 38... h5
{[%clk 0:00:21.2]} 39. Na5 {[%clk 0:00:06.8]} 39... Rc2 {[%clk 0:00:19.6]} 40.
Nb3 {[%clk 0:00:06]} 40... Be3 {[%clk 0:00:16.6]} 41. Re1 {[%clk 0:00:06]} 41...
Rc3 {[%clk 0:00:15.5]} 42. Na5 {[%clk 0:00:05.1]} 42... Bb6 {[%clk 0:00:13.7]}
43. Ra1 {[%clk 0:00:03.9]} 43... f5 {[%clk 0:00:10]} 44. Nb7 {[%clk 0:00:04.1]}
44... Bc7 {[%clk 0:00:08]} 45. Rd1 {[%clk 0:00:02.2]} 45... f4 {[%clk
0:00:05.6]} 46. Nd8 {[%clk 0:00:02.8]} 46... Kf6 {[%clk 0:00:04.3]} 47. Rd7
{[%clk 0:00:02.1]} 47... Kf5 {[%clk 0:00:03.7]} 48. Rf7+ {[%clk 0:00:02]} 48...
Kg5 {[%clk 0:00:03.3]} 49. Ne6+ {[%clk 0:00:02.5]} 49... Kh6 {[%clk 0:00:03.2]}
50. Rxc7 {[%clk 0:00:03.4]} 50... Rxc7 {[%clk 0:00:02.8]} 51. Nxc7 {[%clk
0:00:04.3]} 51... g5 {[%clk 0:00:03.2]} 52. Kg1 {[%clk 0:00:04.9]} 52... g4
{[%clk 0:00:03.5]} 53. hxg4 {[%clk 0:00:04.9]} 53... hxg4 {[%clk 0:00:03.5]} 54.
Kf2 {[%clk 0:00:05.8]} 54... Kg5 {[%clk 0:00:03.9]} 55. Nd5 {[%clk 0:00:06.4]}
55... Kf5 {[%clk 0:00:04]} 56. Nc3 {[%clk 0:00:06.6]} 56... Ke5 {[%clk
0:00:03.9]} 57. Ne2 {[%clk 0:00:07.3]} 57... Ke4 {[%clk 0:00:04.2]} 58. Nc3+
{[%clk 0:00:07.1]} 58... Kd4 {[%clk 0:00:04.3]} 59. Ne2+ {[%clk 0:00:07.5]}
59... Ke4 {[%clk 0:00:04.7]} 60. Nc3+ {[%clk 0:00:07.7]} 60... Kd4 {[%clk
0:00:05.2]} 61. Ne2+ {[%clk 0:00:08.3]} 61... Ke4 {[%clk 0:00:05.6]} 1/2-1/2

[Event "*** Titled Tuesday Blitz"]
[Site "Chess.com"]
[Date "2021.02.09"]
[Round "7"]
[White "banane_verte"]
[Black "Chessmasterzt"]
[Result "0-1"]
[WhiteElo "2436"]
[BlackElo "2608"]
[TimeControl "180+1"]
[EndTime "11:19:34 PST"]
[Termination "Chessmasterzt won on time"]

1. e4 {[%clk 0:02:32.5]} 1... d6 {[%clk 0:03:00.9]} 2. d4 {[%clk 0:02:28.1]}
2... Nf6 {[%clk 0:03:01.4]} 3. Nc3 {[%clk 0:02:27.7]} 3... e5 {[%clk 0:03:01.9]}
4. dxe5 {[%clk 0:02:27.5]} 4... dxe5 {[%clk 0:03:02.8]} 5. Qxd8+ {[%clk
0:02:27.6]} 5... Kxd8 {[%clk 0:03:03.7]} 6. Bc4 {[%clk 0:02:25.8]} 6... Ke8
{[%clk 0:03:03.7]} 7. f3 {[%clk 0:02:15.2]} 7... a6 {[%clk 0:03:03.2]} 8. a4
{[%clk 0:02:13.5]} 8... Nbd7 {[%clk 0:02:54.5]} 9. Be3 {[%clk 0:02:12.5]} 9...
Bc5 {[%clk 0:02:50.4]} 10. Kf2 {[%clk 0:02:12.1]} 10... Bxe3+ {[%clk 0:02:45.4]}
11. Kxe3 {[%clk 0:02:11]} 11... Nb6 {[%clk 0:02:36.5]} 12. Bb3 {[%clk
0:02:08.2]} 12... Be6 {[%clk 0:02:25.9]} 13. Bxe6 {[%clk 0:02:07.3]} 13... fxe6
{[%clk 0:02:26.8]} 14. b3 {[%clk 0:02:08.2]} 14... Ke7 {[%clk 0:02:21.7]} 15.
Nh3 {[%clk 0:01:55.4]} 15... Rad8 {[%clk 0:02:15.3]} 16. Nf2 {[%clk 0:01:52.3]}
16... Rd6 {[%clk 0:02:07.2]} 17. Nd3 {[%clk 0:01:51.6]} 17... Nfd7 {[%clk
0:02:07.2]} 18. a5 {[%clk 0:01:38]} 18... Nc8 {[%clk 0:02:07]} 19. b4 {[%clk
0:01:26.5]} 19... Na7 {[%clk 0:01:59.6]} 20. Rhb1 {[%clk 0:01:21.2]} 20... c6
{[%clk 0:01:53.2]} 21. Na4 {[%clk 0:01:19]} 21... Nb5 {[%clk 0:01:48]} 22. Nac5
{[%clk 0:01:07.4]} 22... Nxc5 {[%clk 0:01:46.7]} 23. bxc5 {[%clk 0:00:58.5]}
23... Rxd3+ {[%clk 0:01:43.8]} 24. Kxd3 {[%clk 0:00:54.2]} 24... Rd8+ {[%clk
0:01:42.5]} 25. Ke3 {[%clk 0:00:54.5]} 25... Rd4 {[%clk 0:01:43]} 26. f4 {[%clk
0:00:18.9]} 26... Rc4 {[%clk 0:01:42.2]} 27. fxe5 {[%clk 0:00:18.5]} 27... Rxc5
{[%clk 0:01:41.1]} 28. Kd2 {[%clk 0:00:11.5]} 28... Rxe5 {[%clk 0:01:39.5]} 29.
c4 {[%clk 0:00:11.1]} 29... Nd6 {[%clk 0:01:40.1]} 30. Kd3 {[%clk 0:00:10.3]}
30... c5 {[%clk 0:01:35.5]} 31. Re1 {[%clk 0:00:09.8]} 31... Rh5 {[%clk
0:01:33.3]} 32. h3 {[%clk 0:00:09.7]} 32... e5 {[%clk 0:01:31.8]} 33. Rab1
{[%clk 0:00:09.3]} 33... Rg5 {[%clk 0:01:32]} 34. g4 {[%clk 0:00:08.4]} 34... h5
{[%clk 0:01:32.5]} 35. Rg1 {[%clk 0:00:08.2]} 35... h4 {[%clk 0:01:26.6]} 36.
Rgf1 {[%clk 0:00:08.3]} 36... Rg6 {[%clk 0:01:26.2]} 37. Rf2 {[%clk 0:00:07.9]}
37... Rh6 {[%clk 0:01:25.8]} 38. Rfb2 {[%clk 0:00:08.2]} 38... Rf6 {[%clk
0:01:23.4]} 39. Rxb7+ {[%clk 0:00:07.6]} 39... Nxb7 {[%clk 0:01:14.5]} 40. Rxb7+
{[%clk 0:00:08.5]} 40... Kf8 {[%clk 0:01:15]} 41. Rb8+ {[%clk 0:00:06.8]} 41...
Kf7 {[%clk 0:01:14.3]} 42. Rb7+ {[%clk 0:00:06.8]} 42... Kf8 {[%clk 0:01:14.4]}
43. Ke3 {[%clk 0:00:06]} 43... Rf1 {[%clk 0:01:08.7]} 44. Rb6 {[%clk 0:00:03.8]}
44... Rh1 {[%clk 0:01:08.6]} 45. Rxa6 {[%clk 0:00:03.7]} 45... Rxh3+ {[%clk
0:01:09.5]} 46. Kf2 {[%clk 0:00:02.6]} 46... Rc3 {[%clk 0:01:07.9]} 47. Re6
{[%clk 0:00:02.1]} 47... Rxc4 {[%clk 0:01:03.3]} 48. Rxe5 {[%clk 0:00:02.6]}
48... Rc3 {[%clk 0:01:01.7]} 49. a6 {[%clk 0:00:02]} 49... h3 {[%clk 0:01:00.6]}
50. a7 {[%clk 0:00:01.3]} 50... Ra3 {[%clk 0:01:00.6]} 51. a8=Q+ {[%clk
0:00:01.3]} 51... Rxa8 {[%clk 0:01:00]} 52. Rxc5 {[%clk 0:00:02.2]} 52... Ra2+
{[%clk 0:00:58.4]} 53. Kg3 {[%clk 0:00:02]} 53... h2 {[%clk 0:00:57.2]} 54. Rh5
{[%clk 0:00:02.9]} 54... Re2 {[%clk 0:00:55.4]} 55. Kf3 {[%clk 0:00:02.6]} 55...
g6 {[%clk 0:00:48.1]} 56. Rh3 {[%clk 0:00:02.3]} 56... Rb2 {[%clk 0:00:46.5]}
57. Kg3 {[%clk 0:00:02.8]} 57... Re2 {[%clk 0:00:45]} 58. Kf3 {[%clk 0:00:03.4]}
58... Ra2 {[%clk 0:00:42.2]} 59. Kg3 {[%clk 0:00:03.5]} 59... Ra4 {[%clk
0:00:18.4]} 60. Rxh2 {[%clk 0:00:03.3]} 60... Rxe4 {[%clk 0:00:18.1]} 61. Kh4
{[%clk 0:00:03.3]} 61... Kg7 {[%clk 0:00:17.9]} 62. Ra2 {[%clk 0:00:02.7]} 62...
Kh6 {[%clk 0:00:17.3]} 63. Ra4 {[%clk 0:00:03.1]} 63... Rxa4 {[%clk 0:00:16.8]}
0-1

[Event "*** Titled Tuesday Blitz"]
[Site "Chess.com"]
[Date "2021.02.09"]
[Round "7"]
[White "Nachsueb"]
[Black "sbouchet"]
[Result "1-0"]
[WhiteElo "2194"]
[BlackElo "2327"]
[TimeControl "180+1"]
[EndTime "11:19:35 PST"]
[Termination "Nachsueb won on time"]

1. d4 {[%clk 0:03:00.9]} 1... Nf6 {[%clk 0:02:59.4]} 2. c4 {[%clk 0:03:00.9]}
2... g6 {[%clk 0:02:59.4]} 3. Nc3 {[%clk 0:03:01]} 3... Bg7 {[%clk 0:03:00.3]}
4. e4 {[%clk 0:03:00.7]} 4... O-O {[%clk 0:03:01.2]} 5. f4 {[%clk 0:03:01.1]}
5... d6 {[%clk 0:02:59.8]} 6. Nf3 {[%clk 0:03:01.5]} 6... c6 {[%clk 0:02:57.4]}
7. Be2 {[%clk 0:03:01.1]} 7... Bg4 {[%clk 0:02:57]} 8. O-O {[%clk 0:03:01.1]}
8... Nbd7 {[%clk 0:02:56.1]} 9. h3 {[%clk 0:02:58.2]} 9... Bxf3 {[%clk
0:02:55.5]} 10. Bxf3 {[%clk 0:02:59.1]} 10... e5 {[%clk 0:02:56.1]} 11. fxe5
{[%clk 0:02:52.6]} 11... dxe5 {[%clk 0:02:56]} 12. d5 {[%clk 0:02:53.1]} 12...
h6 {[%clk 0:02:55.2]} 13. Be3 {[%clk 0:02:51.6]} 13... Qe7 {[%clk 0:02:49.1]}
14. Qd2 {[%clk 0:02:45.2]} 14... Kh7 {[%clk 0:02:48.3]} 15. Rab1 {[%clk
0:02:43.3]} 15... a5 {[%clk 0:02:45.9]} 16. b3 {[%clk 0:02:32]} 16... Rfd8
{[%clk 0:02:44.5]} 17. Na4 {[%clk 0:02:11.8]} 17... Bf8 {[%clk 0:02:30.5]} 18.
Rfc1 {[%clk 0:02:04.3]} 18... Qb4 {[%clk 0:02:28.1]} 19. Qe2 {[%clk 0:01:45.9]}
19... Nc5 {[%clk 0:01:48.5]} 20. Bd2 {[%clk 0:01:35]} 20... Qa3 {[%clk
0:01:42.1]} 21. Nb6 {[%clk 0:01:28.5]} 21... Ra6 {[%clk 0:01:27.9]} 22. Na4
{[%clk 0:00:57.2]} 22... Nxa4 {[%clk 0:01:22]} 23. bxa4 {[%clk 0:00:58.1]} 23...
Ra7 {[%clk 0:01:09.8]} 24. Bc3 {[%clk 0:00:55.2]} 24... Bd6 {[%clk 0:00:42.5]}
25. Kh1 {[%clk 0:00:53.3]} 25... Qxa4 {[%clk 0:00:40.5]} 26. Qd3 {[%clk
0:00:49.4]} 26... Nd7 {[%clk 0:00:37]} 27. Bd1 {[%clk 0:00:38.3]} 27... Qa3
{[%clk 0:00:30.6]} 28. Rb3 {[%clk 0:00:37]} 28... Nc5 {[%clk 0:00:25.6]} 29. Qf3
{[%clk 0:00:33.9]} 29... Nxb3 {[%clk 0:00:14.9]} 30. Qxf7+ {[%clk 0:00:33.8]}
30... Kh8 {[%clk 0:00:14.9]} 31. Qf6+ {[%clk 0:00:34.2]} 31... Kg8 {[%clk
0:00:14.5]} 32. Qxd8+ {[%clk 0:00:35.1]} 32... Kf7 {[%clk 0:00:14.5]} 33. Qd7+
{[%clk 0:00:28.3]} 33... Be7 {[%clk 0:00:14.8]} 34. Qe6+ {[%clk 0:00:26.4]}
34... Kg7 {[%clk 0:00:14.3]} 35. Bxe5+ {[%clk 0:00:25.5]} 35... Kf8 {[%clk
0:00:12]} 36. Qc8+ {[%clk 0:00:23.5]} 36... Kf7 {[%clk 0:00:11.7]} 37. Qe6+
{[%clk 0:00:23.2]} 37... Kf8 {[%clk 0:00:12.1]} 38. Qxg6 {[%clk 0:00:16.9]}
38... Bg5 {[%clk 0:00:03.8]} 39. Bg7+ {[%clk 0:00:16.3]} 39... Ke7 {[%clk
0:00:04.2]} 40. Qe6+ {[%clk 0:00:13.9]} 40... Kd8 {[%clk 0:00:04.2]} 41. Bf6+
{[%clk 0:00:13.3]} 41... Bxf6 {[%clk 0:00:03.1]} 42. Qxf6+ {[%clk 0:00:14.2]}
42... Kc7 {[%clk 0:00:03.6]} 43. Qf7+ {[%clk 0:00:13.5]} 43... Kb6 {[%clk
0:00:03.7]} 44. Rb1 {[%clk 0:00:12.9]} 44... a4 {[%clk 0:00:02.5]} 45. axb3
{[%clk 0:00:12.6]} 45... Qa2 {[%clk 0:00:03]} 46. Rc1 {[%clk 0:00:08.6]} 46...
Qd2 {[%clk 0:00:03]} 47. Rb1 {[%clk 0:00:06.9]} 47... Qa2 {[%clk 0:00:03.1]} 48.
Rc1 {[%clk 0:00:06.9]} 48... Qd2 {[%clk 0:00:03.1]} 49. Ra1 {[%clk 0:00:07.1]}
49... Qb2 {[%clk 0:00:02.7]} 50. d6 {[%clk 0:00:02.7]} 50... Qxa1 {[%clk
0:00:02.3]} 51. Qf2+ {[%clk 0:00:03.3]} 51... Ka6 {[%clk 0:00:01.2]} 52. d7
{[%clk 0:00:03]} 1-0

[Event "*** Titled Tuesday Blitz"]
[Site "Chess.com"]
[Date "2021.02.09"]
[Round "7"]
[White "bsnsun"]
[Black "VFernandezB"]
[Result "0-1"]
[WhiteElo "2434"]
[BlackElo "2329"]
[TimeControl "180+1"]
[EndTime "11:19:36 PST"]
[Termination "VFernandezB won by resignation"]

1. Nf3 {[%clk 0:03:00.9]} 1... Nf6 {[%clk 0:02:59.7]} 2. c4 {[%clk 0:02:59.6]}
2... g6 {[%clk 0:02:58]} 3. d4 {[%clk 0:02:58.5]} 3... Bg7 {[%clk 0:02:57.5]} 4.
Nc3 {[%clk 0:02:56.8]} 4... d5 {[%clk 0:02:57.9]} 5. cxd5 {[%clk 0:02:56.1]}
5... Nxd5 {[%clk 0:02:58.8]} 6. g3 {[%clk 0:02:56.6]} 6... O-O {[%clk
0:02:56.8]} 7. Bg2 {[%clk 0:02:54.8]} 7... Nxc3 {[%clk 0:02:56.8]} 8. bxc3
{[%clk 0:02:52.3]} 8... c5 {[%clk 0:02:57.7]} 9. O-O {[%clk 0:02:51.7]} 9... Nc6
{[%clk 0:02:54.5]} 10. e3 {[%clk 0:02:51.8]} 10... Bf5 {[%clk 0:02:53.9]} 11.
Nh4 {[%clk 0:02:41.7]} 11... Bd7 {[%clk 0:02:47.8]} 12. Rb1 {[%clk 0:02:38.3]}
12... Qc7 {[%clk 0:02:40.8]} 13. Qb3 {[%clk 0:02:32.4]} 13... b6 {[%clk
0:02:37.3]} 14. Rd1 {[%clk 0:02:27.8]} 14... Na5 {[%clk 0:02:35.1]} 15. Qb2
{[%clk 0:02:15.5]} 15... Rac8 {[%clk 0:02:28.9]} 16. Qe2 {[%clk 0:02:13.8]}
16... Rfd8 {[%clk 0:02:24.7]} 17. Bd2 {[%clk 0:02:11.5]} 17... Be6 {[%clk
0:02:16.5]} 18. Be1 {[%clk 0:02:07.6]} 18... Bc4 {[%clk 0:02:13.3]} 19. Qb2
{[%clk 0:02:04.4]} 19... e5 {[%clk 0:02:04.4]} 20. d5 {[%clk 0:01:53.8]} 20...
Bf6 {[%clk 0:02:02.4]} 21. e4 {[%clk 0:01:49.4]} 21... Bxh4 {[%clk 0:02:02.3]}
22. gxh4 {[%clk 0:01:49.3]} 22... Nb7 {[%clk 0:02:02.8]} 23. Bh3 {[%clk
0:01:38.3]} 23... Nd6 {[%clk 0:01:57.2]} 24. f3 {[%clk 0:01:31.5]} 24... Rb8
{[%clk 0:01:52.8]} 25. Bg3 {[%clk 0:01:29.7]} 25... Qe7 {[%clk 0:01:51.8]} 26.
Qd2 {[%clk 0:01:27.1]} 26... Ba6 {[%clk 0:01:49]} 27. Qg5 {[%clk 0:01:26]} 27...
f6 {[%clk 0:01:47.5]} 28. Qc1 {[%clk 0:01:22.5]} 28... Bc8 {[%clk 0:01:47.4]}
29. Bg2 {[%clk 0:01:20.9]} 29... Rf8 {[%clk 0:01:27.3]} 30. Kh1 {[%clk
0:01:19.4]} 30... Bd7 {[%clk 0:01:21.7]} 31. Rg1 {[%clk 0:01:17.7]} 31... Kh8
{[%clk 0:01:20.5]} 32. h5 {[%clk 0:01:13.8]} 32... g5 {[%clk 0:01:19.8]} 33. h4
{[%clk 0:01:02.2]} 33... h6 {[%clk 0:01:19.3]} 34. hxg5 {[%clk 0:01:00.5]} 34...
hxg5 {[%clk 0:01:14.6]} 35. Re1 {[%clk 0:00:48.4]} 35... Kg7 {[%clk 0:01:08.8]}
36. Kg1 {[%clk 0:00:48.3]} 36... Rh8 {[%clk 0:01:08.9]} 37. Kf2 {[%clk
0:00:48.7]} 37... Rxh5 {[%clk 0:01:08.7]} 38. Rh1 {[%clk 0:00:48.6]} 38... Rbh8
{[%clk 0:01:08.6]} 39. Rxh5 {[%clk 0:00:47.5]} 39... Rxh5 {[%clk 0:01:09.5]} 40.
Qe3 {[%clk 0:00:47.2]} 40... Bh3 {[%clk 0:01:05.3]} 41. Bxh3 {[%clk 0:00:44.7]}
41... Rxh3 {[%clk 0:01:05.1]} 42. Kg2 {[%clk 0:00:45]} 42... Rh8 {[%clk
0:00:59.1]} 43. Qe2 {[%clk 0:00:41.4]} 43... Qd7 {[%clk 0:00:55.9]} 44. Rh1
{[%clk 0:00:40.4]} 44... Rxh1 {[%clk 0:00:55.8]} 45. Kxh1 {[%clk 0:00:41.3]}
45... Qh3+ {[%clk 0:00:55.8]} 46. Bh2 {[%clk 0:00:38.3]} 46... c4 {[%clk
0:00:47.3]} 47. Kg1 {[%clk 0:00:38]} 47... Kf7 {[%clk 0:00:37.7]} 48. Qf2 {[%clk
0:00:34.5]} 48... g4 {[%clk 0:00:33.7]} 49. fxg4 {[%clk 0:00:14.4]} 49... Qxg4+
{[%clk 0:00:34.6]} 50. Kf1 {[%clk 0:00:13.9]} 50... Nxe4 {[%clk 0:00:32.5]} 51.
Qc2 {[%clk 0:00:13.8]} 51... Qf3+ {[%clk 0:00:29.9]} 52. Kg1 {[%clk 0:00:13]}
52... Qe3+ {[%clk 0:00:27.8]} 53. Kg2 {[%clk 0:00:13.2]} 53... Qd2+ {[%clk
0:00:24.2]} 54. Qxd2 {[%clk 0:00:13.2]} 54... Nxd2 {[%clk 0:00:25.1]} 55. Kf2
{[%clk 0:00:12.1]} 55... Ne4+ {[%clk 0:00:25.2]} 56. Ke3 {[%clk 0:00:12.2]}
56... Nxc3 {[%clk 0:00:25.8]} 57. d6 {[%clk 0:00:11.4]} 57... Ke6 {[%clk
0:00:25.5]} 58. Bg1 {[%clk 0:00:11.5]} 58... Kxd6 {[%clk 0:00:25]} 59. Kd2
{[%clk 0:00:11.9]} 59... Nd5 {[%clk 0:00:24.8]} 60. Kc2 {[%clk 0:00:12.8]} 60...
f5 {[%clk 0:00:24.9]} 61. a4 {[%clk 0:00:13.2]} 61... a6 {[%clk 0:00:24.4]} 62.
a5 {[%clk 0:00:14.1]} 62... b5 {[%clk 0:00:24.8]} 63. Kd2 {[%clk 0:00:13.4]}
63... b4 {[%clk 0:00:25]} 64. Bh2 {[%clk 0:00:14.1]} 64... f4 {[%clk 0:00:24.4]}
65. Kc2 {[%clk 0:00:15]} 65... Kc6 {[%clk 0:00:24.6]} 66. Kd2 {[%clk 0:00:15.6]}
66... Kb5 {[%clk 0:00:25]} 67. Kc2 {[%clk 0:00:16.5]} 67... Kxa5 {[%clk
0:00:25.4]} 68. Bg1 {[%clk 0:00:16.9]} 68... Kb5 {[%clk 0:00:25.6]} 69. Ba7
{[%clk 0:00:17.5]} 69... a5 {[%clk 0:00:25.6]} 70. Bb8 {[%clk 0:00:18.4]} 70...
f3 {[%clk 0:00:23]} 71. Bxe5 {[%clk 0:00:19.3]} 71... f2 {[%clk 0:00:23.6]} 0-1